fUST/lending_fUST_20251105
["ID","MTS","AMOUNT","RATE_DAILY","PERIOD"]
[393209278,1762321454716,-421.45,0.000363,60]
[393209279,1762321454793,-159.797696,0.000363,60]
[393209280,1762321454870,-152.96652041,0.00036312,60]
[393209281,1762321454951,-162.67037278,0.00036438,30]
[393209282,1762321455033,-159.797696,0.00036481,60]
[393209283,1762321455113,-500.0,0.0003657,30]
[393209284,1762321455194,-500.0,0.0003657,30]
[393209285,1762321455274,-500.0,0.0003657,30]
[393209286,1762321455353,-358.30834362,0.0003657,30]
[393209287,1762321455434,-500.0,0.0003657,30]
[393209288,1762321455514,-500.0,0.00036619,30]
[393209289,1762321455596,-500.0,0.00036619,30]
[393209290,1762321455675,-500.0,0.00036619,30]
[393209291,1762321455749,-500.0,0.00036619,30]
[393209292,1762321455825,-591.58948534,0.00036619,30]
[393209293,1762321455901,-500.0,0.00036619,30]
[393209294,1762321455975,-500.0,0.00036619,30]
[393209295,1762321456049,-500.0,0.00036619,30]
[393209296,1762321456125,-500.0,0.00036619,30]
[393209297,1762321456199,-564.39217087,0.00036619,30]
[393209298,1762321456278,-159.797696,0.00036662,60]
[393209299,1762321456354,-1000.0,0.00036712,120]
[393209300,1762321456427,-165.212425,0.00036843,60]
[393209301,1762321456504,-159.797696,0.00036843,60]
[393209302,1762321456577,-1500.0,0.00037,30]
[393209303,1762321456649,-151.0,0.00037,120]
[393209304,1762321456720,-575.45789604,0.00037,60]
[393209305,1762321456792,-158.754519,0.00037,120]
[393209306,1762321456863,-504.0311792,0.00037013,30]
[393209307,1762321456933,-165.212425,0.00037024,60]
[393209308,1762321457014,-159.797696,0.00037024,60]
[393209309,1762321457092,-3000.0,0.000371,30]
[393209310,1762321457169,-3000.0,0.0003711,30]
[393209311,1762321457241,-3000.0,0.0003712,30]
[393209312,1762321457313,-3000.0,0.0003713,30]
[393209313,1762321457392,-4661.087725,0.0003714,30]
[393209314,1762321457473,-1000.0,0.0003726,120]
[393209315,1762321457555,-322.7599866,0.00037562,30]
[393209316,1762321457633,-1500.0,0.00037562,30]
[393209317,1762321457708,-150.0,0.00037565,30]
[393209318,1762321457793,-10000.0,0.00037583,30]
[393209319,1762321457867,-6205.3,0.00037583,30]
[393209320,1762321457943,-253.0,0.00037584,30]
[393209321,1762321458018,-275.829,0.0003759,30]
[393209322,1762321458095,-662.40328653,0.00037592,30]
[393209323,1762321458174,-10000.0,0.00037595,30]
[393209324,1762321458246,-2648.13,0.00037595,30]
[393209325,1762321458321,-10000.0,0.00037597,30]
[393209326,1762321458397,-10000.0,0.00037597,30]
[393209327,1762321458470,-10000.0,0.00037597,30]
[393209328,1762321458542,-2072.66,0.00037597,30]
[393209329,1762321458613,-5000.3479311,0.00037597,30]
[393209330,1762321458682,-190.27333298,0.000376,120]
[393209331,1762321458751,-218.15604529,0.000376,120]
[393209332,1762321458821,-190.65647688,0.000376,120]
[393209333,1762321458894,-915.53397819,0.000376,120]
[393209334,1762321458976,-183.48982635,0.000376,120]
[393209335,1762321459053,-1174.83468436,0.000376,120]
[393209336,1762321459128,-178.46732907,0.000376,120]
[393209337,1762321459204,-179.90181952,0.000376,120]
[393209338,1762321459279,-475.00276098,0.000376,120]
[393209339,1762321459358,-248.63102455,0.000376,120]
[393209340,1762321459439,-10000.0,0.00037601,30]
[393209341,1762321459522,-10000.0,0.00037601,30]
[393209342,1762321459604,-10000.0,0.00037601,30]
[393209343,1762321459680,-10000.0,0.00037601,30]
[393209344,1762321459753,-10000.0,0.00037601,30]
[393209345,1762321459827,-1100.0,0.00037616,30]
[393209346,1762321460007,-1100.0,0.00037616,30]
[393209347,1762321460085,-1100.0,0.00037616,30]
[393209348,1762321460162,-1100.0,0.00037616,30]
[393209349,1762321460234,-1100.0,0.00037616,30]
[393209350,1762321460307,-1100.0,0.00037616,30]
[393209351,1762321460380,-1100.0,0.00037616,30]
[393209352,1762321460461,-1100.0,0.00037616,30]
[393209353,1762321460542,-1100.0,0.00037616,30]
[393209354,1762321460624,-351.0,0.00037625,30]
[393209355,1762321460715,-500.04,0.00037641,30]
[393209356,1762321460807,-54086.22834813,0.00037646,30]
[393209357,1762321460899,-335094.79424351,0.000377,30]
[393209358,1762321460974,-3787.6,0.00037711,30]
[393209359,1762321461046,-4000.0,0.00037745,30]
[393209360,1762321461121,-5489.0,0.00037746,30]
[393209361,1762321461193,-1000.0,0.00037808,120]
[393209362,1762321461267,-1000.0,0.00037909,30]
[393209363,1762321461339,-1000.0,0.00037909,30]
[393209364,1762321461413,-579.0,0.00037909,30]
[393209365,1762321461485,-687.28089602,0.00038021,120]
[393209366,1762321461559,-168.77871777,0.00038051,60]
[393209367,1762321461639,-200.0,0.00038135,120]
[393209368,1762321461716,-200.0,0.00038262,120]
[393209369,1762321461786,-1000.0,0.00038356,120]
[393209370,1762321461855,-190.27333298,0.000387,120]
[393209371,1762321461928,-218.15604529,0.000387,120]
[393209372,1762321462006,-190.65647688,0.000387,120]
[393209373,1762321462079,-915.53397819,0.000387,120]
[393209374,1762321462152,-183.48982635,0.000387,120]
[393209375,1762321462229,-1174.83468436,0.000387,120]
[393209376,1762321462310,-475.00276098,0.000387,120]
[393209377,1762321462389,-248.63102455,0.000387,120]
[393209378,1762321462465,-1000.0,0.00038888,30]
[393209379,1762321462539,-151.0,0.00039,120]
[393209380,1762321462610,-2675.8,0.00039829,30]
[393209381,1762321462681,-218.15604529,0.000399,120]
[393209382,1762321462750,-190.65647688,0.000399,120]
[393209383,1762321462818,-915.53397819,0.000399,120]
[393209384,1762321462884,-183.48982635,0.000399,120]
[393209385,1762321462955,-1174.83468436,0.000399,120]
[393209386,1762321463036,-475.00276098,0.000399,120]
[393209387,1762321463109,-248.63102455,0.000399,120]
[393209388,1762321463184,-200.0,0.00039942,120]
[393209389,1762321463263,-399.61951377,0.00039999,31]
[393209390,1762321463362,-375.76287965,0.00039999,31]
[393209391,1762321463462,-400.0,0.0004,120]
[393209392,1762321463558,-2011.93401939,0.0004,120]
[393209393,1762321463654,-1508.88176917,0.0004,30]
[393209394,1762321463744,-15180.0,0.0004,120]
[393209395,1762321463836,-728.79450719,0.00040021,120]
[393209396,1762321463928,-200.0,0.00040291,120]
[393209397,1762321464019,-151.0,0.00041,120]
[393209398,1762321464106,-163.57,0.00041096,120]
[393209399,1762321464194,-218.15604529,0.000411,120]
[393209400,1762321464284,-190.65647688,0.000411,120]
[393209401,1762321464371,-915.53397819,0.000411,120]
[393209402,1762321464453,-1174.83468436,0.000411,120]
[393209403,1762321464535,-475.00276098,0.000411,120]
[393209404,1762321464617,-248.63102455,0.000411,120]
[393209405,1762321464695,-205.09,0.000411,120]
[393209406,1762321464774,-190.35144019,0.000411,120]
[393209407,1762321464863,-190.35,0.000411,120]
[393209408,1762321464944,-203.939,0.00041158,60]
[393209409,1762321465028,-200.0,0.000412,56]
[393209410,1762321465109,-150.0,0.00041243,30]
[393209411,1762321465192,-1000.0,0.000417,90]
[393209412,1762321465278,-1000.0,0.000417,90]
[393209413,1762321465365,-1000.0,0.000417,90]
[393209414,1762321465448,-1200.0,0.00041765,60]
[393209415,1762321465536,-200.0,0.0004197,120]
[393209416,1762321465620,-2000.0,0.00042,120]
[393209417,1762321465704,-1000.0,0.00042,120]
[393209418,1762321465783,-300.0,0.00042,120]
[393209419,1762321465863,-200.0,0.00042018,120]
[393209420,1762321465944,-770.30811836,0.00042021,120]
[393209421,1762321466020,-500.0,0.00042082,30]
[393209422,1762321466099,-200.0,0.00042241,120]
[393209423,1762321466176,-218.15604529,0.000423,120]
[393209424,1762321466255,-915.53397819,0.000423,120]
[393209425,1762321466331,-1174.83468436,0.000423,120]
[393209426,1762321466406,-475.00276098,0.000423,120]
[393209427,1762321466482,-248.63102455,0.000423,120]
[393209428,1762321466559,-200.0,0.000425,120]
[393209429,1762321466639,-200.0,0.00042517,120]
[393209430,1762321466715,-1200.0,0.00042861,60]
[393209431,1762321466793,-1000.0,0.00043,120]
[393209432,1762321466871,-151.0,0.00043,120]
[393209433,1762321466951,-150.0,0.00043207,30]
[393209434,1762321467029,-594.7595,0.0004322,30]
[393209435,1762321467105,-200.0,0.00043245,120]
[393209436,1762321467186,-37311.74566496,0.00043259,120]
[393209437,1762321467271,-1174.83468436,0.000436,120]
[393209438,1762321467352,-915.35,0.000438,120]
[393209439,1762321467432,-1736.11,0.00043835,120]
[393209440,1762321467617,-999.0,0.00043835,120]
[393209441,1762321467700,-1200.0,0.00043957,60]
[393209442,1762321467780,-300.0,0.00044,120]
[393209443,1762321467858,-200.0,0.00044,64]
[393209444,1762321467937,-811.82172953,0.00044021,120]
[393209445,1762321468020,-1736.11,0.00044383,120]
[393209446,1762321468096,-999.0,0.00044657,120]
[393209447,1762321468172,-1174.83468436,0.000449,120]
[393209448,1762321468246,-695.3765132,0.00044931,120]
[393209449,1762321468326,-1736.11,0.00044931,120]
[393209450,1762321468411,-285.67636183,0.00044938,120]
[393209451,1762321468495,-200.0,0.00045,120]
[393209452,1762321468577,-1028.59450976,0.00045,120]
[393209453,1762321468659,-221.88313722,0.00045,120]
[393209454,1762321468740,-228.26458362,0.00045,120]
[393209455,1762321468820,-150.0,0.00045,120]
[393209456,1762321468899,-1000.0,0.00045,120]
[393209457,1762321468986,-2700.0,0.00045,120]
[393209458,1762321469068,-151.0,0.00045,120]
[393209459,1762321469147,-1200.0,0.00045053,60]
[393209460,1762321469231,-200.0,0.00045205,120]
[393209461,1762321469312,-500.0,0.0004537,50]
[393209462,1762321469394,-335.86896142,0.000454,120]
[393209463,1762321469472,-1000.0,0.00045443,120]
[393209464,1762321469555,-1736.11,0.00045479,120]
[393209465,1762321469640,-688.25776222,0.00045479,120]
[393209466,1762321469717,-150.59524022,0.000455,60]
[393209467,1762321469802,-1000.0,0.0004587,90]
[393209468,1762321469892,-1000.0,0.0004587,90]
[393209469,1762321469987,-1000.0,0.0004587,90]
[393209470,1762321470076,-715.0,0.0004587,90]
[393209471,1762321470163,-273.01512268,0.000459,120]
[393209472,1762321470246,-1000.0,0.00046,120]
[393209473,1762321470333,-853.3353407,0.00046021,120]
[393209474,1762321470427,-1736.11,0.00046027,120]
[393209475,1762321470515,-1200.0,0.00046149,60]
[393209476,1762321470599,-1174.83468436,0.000462,120]
[393209477,1762321470676,-200.0,0.00046202,120]
[393209478,1762321470754,-200.0,0.00046202,120]
[393209479,1762321470833,-200.0,0.00046202,120]
[393209480,1762321470913,-642.15832874,0.00046466,120]
[393209481,1762321470993,-1736.11,0.00046575,120]
[393209482,1762321471082,-500.0,0.00046575,30]
[393209483,1762321471167,-175.92,0.000466,120]
[393209484,1762321471255,-500.0,0.0004663,30]
[393209485,1762321471338,-500.0,0.00046685,30]
[393209486,1762321471419,-502.1500777,0.00046739,30]
[393209487,1762321471499,-200.0,0.000468,72]
[393209488,1762321471582,-5000.0,0.00047,120]
[393209489,1762321471663,-1965.94,0.00047,120]
[393209490,1762321471740,-439.24479182,0.00047,30]
[393209491,1762321471818,-150.0,0.00047,120]
[393209492,1762321471897,-151.0,0.00047,120]
[393209493,1762321471985,-1736.11,0.00047123,120]
[393209494,1762321472070,-200.0,0.00047131,120]
[393209495,1762321472153,-1200.0,0.00047245,60]
[393209496,1762321472236,-200.0,0.000473,120]
[393209497,1762321472319,-200.0,0.000473,120]
[393209498,1762321472401,-1174.83468436,0.000476,120]
[393209499,1762321472482,-1736.11,0.00047671,120]
[393209500,1762321472565,-20061.84731352,0.000479,30]
[393209501,1762321472644,-1184.34859739,0.000479,30]
[393209502,1762321487946,-591.8931998,0.00028695,30]
[393209503,1762321488036,-163.8562911,0.00032858,30]
[393209504,1762321488121,-1943.88068671,0.000332,117]
[393209505,1762321488204,-1943.88068668,0.000332,117]
[393209506,1762321488286,-1943.88068668,0.000332,117]
[393209507,1762321488367,-1943.88068668,0.000332,117]
[393209508,1762321488474,-23815.65140261,0.000479,30]
[393209509,1762321488559,-39619.96580785,0.00048,120]
[393209510,1762321488640,-1000.0,0.00048,120]
[393209511,1762321488726,-433.18248,0.00048,120]
[393209512,1762321488819,-894.84895187,0.00048021,120]
[393209513,1762321488926,-3000.0,0.000482,120]
[393209514,1762321489022,-1736.11,0.00048219,120]
[393209515,1762321489107,-1200.0,0.00048341,60]
[393209516,1762321489193,-1736.11,0.00048767,120]
[393209517,1762321489276,-500.0,0.00048767,120]
[393209518,1762321489365,-500.0,0.00048767,120]
[393209519,1762321489460,-500.0,0.00048767,120]
[393209520,1762321489553,-500.0,0.00048767,120]
[393209521,1762321489644,-500.0,0.00048767,120]
[393209522,1762321489731,-500.0,0.00048767,120]
[393209523,1762321489816,-500.0,0.00048767,120]
[393209524,1762321489904,-500.0,0.00048767,120]
[393209525,1762321489997,-500.0,0.00048767,120]
[393209526,1762321490080,-645.72363436,0.00048767,120]
[393209527,1762321490164,-2586.49416517,0.000488,120]
[393209528,1762321490246,-2298.01181334,0.000488,120]
[393209529,1762321490328,-500.0,0.00048932,60]
[393209530,1762321490412,-150025.76,0.00049,30]
[393209531,1762321490500,-1174.83468436,0.00049,120]
[393209532,1762321490587,-222.50453385,0.00049,120]
[393209533,1762321490677,-151.0,0.00049,120]
[393209534,1762321490764,-200.0,0.00049029,120]
[393209535,1762321490851,-200.0,0.00049118,120]
[393209536,1762321490930,-1000.0,0.000492,60]
[393209537,1762321491007,-3000.0,0.000492,120]
[393209538,1762321491086,-3000.0,0.000492,120]
[393209539,1762321491167,-2000.0,0.000493,48]
[393209540,1762321491246,-1736.11,0.00049315,120]
[393209541,1762321491330,-1662.68,0.00049315,120]
[393209542,1762321491421,-1130.47301631,0.00049378,74]
[393209543,1762321491520,-1200.0,0.00049437,60]
[393209544,1762321491609,-500.0,0.00049444,30]
[393209545,1762321491697,-540299.26727263,0.00049444,30]
[393209546,1762321506835,-1943.88068668,0.00037466,120]
[393209547,1762321506952,-1008.0,0.00043,120]
[393209548,1762321507052,-797048.11931332,0.00049444,30]
[393209549,1762321517540,-399.56292103,0.00032877,120]
[393209550,1762321517649,-168.77871778,0.0003805,60]
[393209551,1762321517747,-1593.41,0.00049315,120]
[393209552,1762321517838,-313150.67221405,0.00049444,30]
[393209553,1762321517932,-119589.8066,0.00049444,30]
[393209554,1762321518031,-200.0,0.00049496,120]
[393209555,1762321518130,-1593.41,0.00049589,120]
[393209556,1762321518222,-202.0,0.000496,80]
[393209557,1762321518316,-200.0,0.000497,120]
[393209558,1762321518407,-200.0,0.000497,120]
[393209559,1762321518499,-1736.11,0.00049863,120]
[393209560,1762321518591,-1593.41,0.00049863,120]
[393209561,1762321518679,-200.0,0.0004993,120]
[393209562,1762321518768,-362.0,0.0005,120]
[393209563,1762321518856,-1000.0,0.0005,120]
[393209564,1762321518942,-5000.0,0.0005,30]
[393209565,1762321519028,-1000.0,0.0005,120]
[393209566,1762321519115,-100000.0,0.0005,30]
[393209567,1762321519207,-3743.91453964,0.0005,120]
[393209568,1762321519296,-214.62456053,0.0005,120]
[393209569,1762321519387,-551.9174831,0.0005,120]
[393209570,1762321519474,-878.14465199,0.0005,120]
[393209571,1762321519583,-642.47706025,0.0005,120]
[393209572,1762321519679,-5701.99738364,0.0005,120]
[393209573,1762321519771,-2498.28001582,0.0005,120]
[393209574,1762321519861,-237579.48385217,0.0005,120]
[393209575,1762321522357,-800000.0,0.0005,120]
[393209576,1762321525303,-393.0,0.00034005,120]
[393209577,1762321525405,-420.0,0.00036005,120]
[393209578,1762321525512,-447.0,0.00038005,120]
[393209579,1762321525608,-474.0,0.00040005,120]
[393209580,1762321525699,-501.0,0.00042005,120]
[393209581,1762321525792,-528.0,0.00044005,120]
[393209582,1762321526022,-450.14815589,0.00046005,120]
[393209583,1762321526114,-514047.26614783,0.0005,120]
[393209584,1762321526204,-400.0,0.0005,120]
[393209585,1762321526297,-10000.0,0.0005,90]
[393209586,1762321526390,-1593.41,0.00050136,120]
[393209587,1762321526480,-4000.0,0.000502,120]
[393209588,1762321526570,-4289.03085432,0.0005026,120]
[393209589,1762321526659,-1023.0,0.000503,50]
[393209590,1762321526747,-1736.11,0.0005041,120]
[393209591,1762321526834,-1593.41,0.0005041,120]
[393209592,1762321526930,-1000.0,0.00050457,120]
[393209593,1762321527026,-1000.0,0.00050457,120]
[393209594,1762321527122,-1000.0,0.00050457,120]
[393209595,1762321527213,-905.59130187,0.00050533,60]
[393209596,1762321527311,-1593.41,0.00050684,120]
[393209597,1762321527401,-1736.11,0.00050958,120]
[393209598,1762321527494,-1593.41,0.00050958,120]
[393209599,1762321527585,-898.38907058,0.0005096,120]
[393209600,1762321527673,-200.0,0.00051,120]
[393209601,1762321527764,-1000.0,0.00051,120]
[393209602,1762321527852,-1000.0,0.00051,120]
[393209603,1762321527939,-151.0,0.00051,120]
[393209604,1762321528027,-3000.0,0.00051,85]
[393209605,1762321528118,-3000.0,0.0005101,85]
[393209606,1762321528213,-3000.0,0.0005102,85]
[393209607,1762321528306,-3000.0,0.0005103,85]
[393209608,1762321528399,-3000.0,0.0005104,85]
[393209609,1762321528489,-3000.0,0.0005105,85]
[393209610,1762321528578,-3000.0,0.0005106,85]
[393209611,1762321528668,-3000.0,0.0005107,85]
[393209612,1762321528757,-179.83814567,0.00051079,43]
[393209613,1762321528848,-3029.725578,0.0005108,85]
[393209614,1762321528941,-209.0,0.0005119,30]
[393209615,1762321529034,-3000.0,0.000512,120]
[393209616,1762321529125,-412.0,0.00051202,120]
[393209617,1762321529218,-1593.41,0.00051232,120]
[393209618,1762321529313,-112878.9104431,0.00051295,60]
[393209619,1762321529407,-100723.83030274,0.00051495,90]
[393209623,1762321538580,-151.0,0.0003,31]
[393209624,1762321538678,-151.0,0.0003,31]
[393209625,1762321538774,-151.0,0.0003,31]
[393209626,1762321538868,-151.0,0.0003,31]
[393209627,1762321538986,-500.0,0.00049999,120]
[393209628,1762321539083,-500.0,0.00049999,120]
[393209629,1762321539183,-500.0,0.00049999,120]
[393209630,1762321539289,-500.0,0.00049999,120]
[393209631,1762321539389,-500.0,0.00049999,120]
[393209632,1762321539485,-500.0,0.00049999,120]
[393209633,1762321539581,-500.0,0.00049999,120]
[393209634,1762321539674,-500.0,0.00049999,120]
[393209635,1762321539767,-500.0,0.00049999,120]
[393209636,1762321539967,-500.0,0.00049999,120]
[393209637,1762321540060,-500.0,0.00049999,120]
[393209638,1762321540154,-500.0,0.00049999,120]
[393209639,1762321540249,-500.0,0.00049999,120]
[393209640,1762321540343,-500.0,0.00049999,120]
[393209641,1762321540438,-500.0,0.00049999,120]
[393209642,1762321540553,-500.0,0.00049999,120]
[393209643,1762321540644,-500.0,0.00049999,120]
[393209644,1762321540732,-500.0,0.00049999,120]
[393209645,1762321540819,-585.08308261,0.00049999,120]
[393209646,1762321540905,-500.0,0.00049999,120]
[393209647,1762321540991,-500.0,0.00049999,120]
[393209648,1762321541078,-500.0,0.00049999,120]
[393209649,1762321541165,-500.0,0.00049999,120]
[393209650,1762321541254,-500.0,0.00049999,120]
[393209651,1762321541344,-500.0,0.00049999,120]
[393209652,1762321541438,-500.0,0.00049999,120]
[393209653,1762321541532,-500.0,0.00049999,120]
[393209654,1762321541623,-593.8511788,0.00049999,120]
[393209655,1762321541714,-500.0,0.00049999,120]
[393209656,1762321541806,-500.0,0.00049999,120]
[393209657,1762321541894,-334.96764627,0.00049999,120]
[393209658,1762321541985,-500.0,0.00049999,120]
[393209659,1762321542075,-525.66378475,0.00049999,120]
[393209660,1762321542168,-99276.16969726,0.00051495,90]
[393209661,1762321542257,-1736.11,0.00051506,120]
[393209662,1762321542348,-1593.41,0.00051506,120]
[393209663,1762321542438,-500.0,0.00051671,80]
[393209664,1762321542530,-200.0,0.00051737,120]
[393209665,1762321542621,-1593.41,0.0005178,120]
[393209666,1762321542710,-876.37274971,0.000518,120]
[393209667,1762321542800,-509.10158491,0.00051916,30]
[393209668,1762321542890,-1000.0,0.00051999,120]
[393209669,1762321542982,-1000.0,0.00052,120]
[393209670,1762321543072,-1000.0,0.00052,120]
[393209671,1762321543161,-1000.0,0.00052,120]
[393209672,1762321543250,-93449.08381097,0.00052,120]
[393209673,1762321543338,-1736.11,0.00052054,120]
[393209674,1762321543426,-1593.41,0.00052054,120]
[393209675,1762321543519,-204.9435,0.000521,120]
[393209676,1762321543614,-200.0,0.000522,120]
[393209677,1762321543708,-1593.41,0.00052328,120]
[393209678,1762321543801,-209.0,0.0005249,30]
[393209679,1762321543892,-3000.0,0.000525,120]
[393209680,1762321543988,-1736.11,0.00052602,120]
[393209681,1762321544080,-1593.41,0.00052602,120]
[393209682,1762321544175,-1593.41,0.00052876,120]
[393209683,1762321544269,-200.0,0.00052994,120]
[393209684,1762321544362,-1000.0,0.00053,120]
[393209685,1762321544457,-1717.77065128,0.00053,120]
[393209686,1762321544553,-2000.0,0.00053,120]
[393209687,1762321544649,-1037.5070439,0.00053,120]
[393209688,1762321544743,-151.0,0.00053,120]
[393209689,1762321544836,-1033.99331525,0.00053,120]
[393209690,1762321544929,-1736.11,0.0005315,120]
[393209691,1762321545022,-1593.41,0.0005315,120]
[393209692,1762321545115,-200.0,0.00053334,120]
[393209693,1762321545206,-1593.41,0.00053424,120]
[393209694,1762321545296,-3000.0,0.000535,120]
[393209695,1762321545389,-1736.11,0.00053698,120]
[393209696,1762321545485,-1593.41,0.00053698,120]
[393209697,1762321545576,-209.0,0.0005379,30]
[393209698,1762321545669,-50072.93,0.000539,30]
[393209699,1762321545766,-1593.41,0.00053972,120]
[393209700,1762321545859,-1437.54678111,0.00053978,80]
[393209701,1762321545950,-100000.0,0.0005398,120]
[393209702,1762321546041,-783.16612769,0.00053989,120]
[393209703,1762321546137,-1711.85434897,0.00054,120]
[393209704,1762321546229,-1000.0,0.00054,120]
[393209705,1762321546324,-400.0,0.00054,120]
[393209706,1762321546420,-1006.95462961,0.00054,120]
[393209707,1762321546515,-4896.90301964,0.00054,120]
[393209708,1762321546613,-200.0,0.00054057,120]
[393209709,1762321546704,-412.0,0.00054202,120]
[393209710,1762321546795,-500.0,0.00054221,30]
[393209711,1762321546888,-500.0,0.00054221,30]
[393209712,1762321546981,-500.0,0.00054221,30]
[393209713,1762321547074,-500.0,0.00054221,30]
[393209714,1762321547167,-509.06915323,0.00054221,30]
[393209715,1762321547255,-500.0,0.00054221,30]
[393209716,1762321547340,-500.0,0.00054221,30]
[393209717,1762321547429,-500.0,0.00054221,30]
[393209718,1762321547517,-500.0,0.00054221,30]
[393209719,1762321547603,-500.0,0.00054221,30]
[393209720,1762321547686,-500.0,0.00054221,30]
[393209721,1762321547770,-500.0,0.00054221,30]
[393209722,1762321547857,-500.0,0.00054221,30]
[393209723,1762321547940,-500.0,0.00054221,30]
[393209724,1762321548024,-500.0,0.00054221,30]
[393209725,1762321548106,-500.0,0.00054221,30]
[393209726,1762321548192,-500.0,0.00054221,30]
[393209727,1762321548282,-500.0,0.00054221,30]
[393209728,1762321548369,-500.0,0.00054221,30]
[393209729,1762321548453,-505.3942742,0.00054221,30]
[393209730,1762321548633,-500.0,0.00054221,30]
[393209731,1762321548721,-500.0,0.00054221,30]
[393209732,1762321548808,-500.0,0.00054221,30]
[393209733,1762321548891,-500.0,0.00054221,30]
[393209734,1762321548972,-371.83929011,0.00054221,30]
[393209735,1762321549056,-500.0,0.00054221,30]
[393209736,1762321549142,-500.0,0.00054221,30]
[393209737,1762321549228,-500.0,0.00054221,30]
[393209738,1762321549308,-500.0,0.00054221,30]
[393209739,1762321549391,-500.0,0.00054221,30]
[393209740,1762321549479,-500.0,0.00054221,30]
[393209741,1762321549569,-500.0,0.00054221,30]
[393209742,1762321549659,-500.0,0.00054221,30]
[393209743,1762321549742,-500.0,0.00054221,30]
[393209744,1762321549824,-500.0,0.00054221,30]
[393209745,1762321549907,-500.0,0.00054221,30]
[393209746,1762321549987,-399.68668787,0.00054221,30]
[393209747,1762321550066,-500.0,0.00054221,30]
[393209748,1762321550143,-500.0,0.00054221,30]
[393209749,1762321550219,-500.0,0.00054221,30]
[393209750,1762321550296,-500.0,0.00054221,30]
[393209751,1762321550386,-500.0,0.00054221,30]
[393209752,1762321550481,-500.0,0.00054221,30]
[393209753,1762321550572,-242.20219622,0.00054221,30]
[393209754,1762321550664,-151.0,0.00054221,30]
[393209755,1762321550755,-151.0,0.00054221,30]
[393209756,1762321550844,-151.0,0.00054221,30]
[393209757,1762321550934,-236.66643699,0.00054221,30]
[393209758,1762321551022,-848.0,0.00054221,30]
[393209759,1762321551110,-848.0,0.00054221,30]
[393209760,1762321551202,-848.0,0.00054221,30]
[393209761,1762321551295,-848.0,0.00054221,30]
[393209762,1762321551389,-848.0,0.00054221,30]
[393209763,1762321551478,-848.0,0.00054221,30]
[393209764,1762321551571,-848.0,0.00054221,30]
[393209765,1762321551660,-848.0,0.00054221,30]
[393209766,1762321551750,-848.0,0.00054221,30]
[393209767,1762321551842,-848.0,0.00054221,30]
[393209768,1762321551938,-848.0,0.00054221,30]
[393209769,1762321552030,-848.0,0.00054221,30]
[393209770,1762321552122,-848.0,0.00054221,30]
[393209771,1762321552216,-848.0,0.00054221,30]
[393209772,1762321552306,-848.0,0.00054221,30]
[393209773,1762321552394,-848.0,0.00054221,30]
[393209774,1762321552482,-848.0,0.00054221,30]
[393209775,1762321552582,-848.0,0.00054221,30]
[393209776,1762321552692,-848.0,0.00054221,30]
[393209777,1762321552792,-848.0,0.00054221,30]
[393209778,1762321552885,-848.0,0.00054221,30]
[393209779,1762321552981,-848.0,0.00054221,30]
[393209780,1762321553078,-848.0,0.00054221,30]